[Event "Titled Tuesday Blitz January 11 2022"]
[White "Gurevich, Dmitry"]
[Black "Terry, Renato"]
[WhiteFideId "2000407"]
[BlackFideId "3803457"]
[WhiteElo "2506"]
[BlackElo "2577"]
[Result "1-0"]
[Round "03"]
[TimeControl "180+1"]
[Date "2022.01.11"]
[WhiteClock "0:00:04"]
[BlackClock "0:00:03"]

1. d4 {[%clk 0:03:00]}  e6 {[%clk 0:02:59]} 2. c4 {[%clk 0:03:00]}  Bb4+ {[%clk 0:02:59]} 3. Nd2 {[%clk 0:02:59]}  Nf6 {[%clk 0:02:59]} 4. g3 {[%clk 0:02:59]}  O-O {[%clk 0:02:58]} 5. Bg2 {[%clk 0:02:59]}  a5 {[%clk 0:02:57]} 6. Nf3 {[%clk 0:02:58]}  b6 {[%clk 0:02:57]} 7. Ne5 {[%clk 0:02:53]}  d5 {[%clk 0:02:47]} 8. cxd5 {[%clk 0:02:52]}  exd5 {[%clk 0:02:47]} 9. O-O {[%clk 0:02:51]}  Bb7 {[%clk 0:02:40]} 10. Qc2 {[%clk 0:02:49]}  Re8 {[%clk 0:02:34]} 11. e3 {[%clk 0:02:47]}  Bd6 {[%clk 0:02:32]} 12. Ndf3 {[%clk 0:02:29]}  c5 {[%clk 0:02:27]} 13. b3 {[%clk 0:02:28]}  cxd4 {[%clk 0:02:23]} 14. exd4 {[%clk 0:02:27]}  Na6 {[%clk 0:02:18]} 15. Bf4 {[%clk 0:02:17]}  Nb4 {[%clk 0:02:10]} 16. Qb2 {[%clk 0:02:13]}  Rc8 {[%clk 0:02:05]} 17. Rac1 {[%clk 0:02:06]}  h6 {[%clk 0:01:40]} 18. a3 {[%clk 0:02:04]}  Nc6 {[%clk 0:01:31]} 19. Nxc6 {[%clk 0:01:57]}  Rxc6 {[%clk 0:01:23]} 20. Rxc6 {[%clk 0:01:30]}  Bxc6 {[%clk 0:01:23]} 21. Rc1 {[%clk 0:01:23]}  Bb5 {[%clk 0:01:23]} 22. Ne5 {[%clk 0:01:09]}  Ne4 {[%clk 0:01:23]} 23. a4 {[%clk 0:00:58]}  Ba6 {[%clk 0:01:21]} 24. Qc2 {[%clk 0:00:49]}  Bb7 {[%clk 0:01:08]} 25. Nd3 {[%clk 0:00:46]}  Ba3 {[%clk 0:00:53]} 26. Ra1 {[%clk 0:00:45]}  Bd6 {[%clk 0:00:53]} 27. Rc1 {[%clk 0:00:44]}  Re7 {[%clk 0:00:41]} 28. Bxd6 {[%clk 0:00:40]}  Qxd6 {[%clk 0:00:41]} 29. Ne5 {[%clk 0:00:37]}  g6 {[%clk 0:00:32]} 30. Qd3 {[%clk 0:00:32]}  Kg7 {[%clk 0:00:19]} 31. h4 {[%clk 0:00:30]}  Qb4 {[%clk 0:00:18]} 32. Ng4 {[%clk 0:00:25]}  h5 {[%clk 0:00:15]} 33. Ne3 {[%clk 0:00:23]}  Nf6 {[%clk 0:00:15]} 34. Qc3 {[%clk 0:00:21]}  Qd6 {[%clk 0:00:15]} 35. Qd3 {[%clk 0:00:20]}  Qe6 {[%clk 0:00:14]} 36. Qb5 {[%clk 0:00:18]}  Qd6 {[%clk 0:00:14]} 37. Qd3 {[%clk 0:00:17]}  Qb4 {[%clk 0:00:13]} 38. Qc3 {[%clk 0:00:17]}  Qa3 {[%clk 0:00:13]} 39. Ra1 {[%clk 0:00:17]}  Qd6 {[%clk 0:00:13]} 40. Rc1 {[%clk 0:00:17]}  Ne8 {[%clk 0:00:10]} 41. Qd3 {[%clk 0:00:15]}  Nc7 {[%clk 0:00:08]} 42. Qc3 {[%clk 0:00:15]}  Ne6 {[%clk 0:00:08]} 43. Qd2 {[%clk 0:00:14]}  Rd7 {[%clk 0:00:09]} 44. Qd3 {[%clk 0:00:14]}  Qb4 {[%clk 0:00:09]} 45. Rd1 {[%clk 0:00:11]}  Rd8 {[%clk 0:00:08]} 46. Bh3 {[%clk 0:00:11]}  Nf8 {[%clk 0:00:08]} 47. Rc1 {[%clk 0:00:09]}  Qd6 {[%clk 0:00:08]} 48. Rc3 {[%clk 0:00:08]}  Re8 {[%clk 0:00:07]} 49. Qc2 {[%clk 0:00:08]}  Re7 {[%clk 0:00:08]} 50. Qd2 {[%clk 0:00:07]}  Nh7 {[%clk 0:00:08]} 51. Qd1 {[%clk 0:00:07]}  Nf6 {[%clk 0:00:09]} 52. Qc2 {[%clk 0:00:07]}  Ne4 {[%clk 0:00:09]} 53. Rd3 {[%clk 0:00:07]}  Nxg3 {[%clk 0:00:05]} 54. fxg3 {[%clk 0:00:06]}  Qxg3+ {[%clk 0:00:06]} 55. Qg2 {[%clk 0:00:03]}  Qf4 {[%clk 0:00:04]} 56. Nf5+ {[%clk 0:00:02]}  Kf8 {[%clk 0:00:04]} 57. Nxe7 {[%clk 0:00:01]}  Qc1+ {[%clk 0:00:04]} 58. Qf1 {[%clk 0:00:01]}  Qh6 {[%clk 0:00:03]} 59. Qf2 {[%clk 0:00:01]}  Kxe7 {[%clk 0:00:03]} 60. Qe3+ {[%clk 0:00:02]}  Qxe3+ {[%clk 0:00:03]} 61. Rxe3+ {[%clk 0:00:02]}  Kd6 {[%clk 0:00:03]} 62. Rc3 {[%clk 0:00:03]}  Bc6 {[%clk 0:00:04]} 63. Bf1 {[%clk 0:00:03]}  Bd7 {[%clk 0:00:04]} 64. Bb5 {[%clk 0:00:04]}  Bf5 {[%clk 0:00:03]} 65. Kf2 {[%clk 0:00:04]}  Ke7 {[%clk 0:00:04]} 66. Ke3 {[%clk 0:00:05]}  f6 {[%clk 0:00:04]} 67. Kf4 {[%clk 0:00:05]}  Be4 {[%clk 0:00:03]} 68. Rc6 {[%clk 0:00:05]}  Bc2 {[%clk 0:00:03]} 69. Rxb6 {[%clk 0:00:05]}  Bxb3 {[%clk 0:00:03]} 70. Ra6 {[%clk 0:00:06]}  Bc2 {[%clk 0:00:02]} 71. Rxa5 {[%clk 0:00:06]}  Kd6 {[%clk 0:00:01]} 72. Ra6+ {[%clk 0:00:06]}  Ke7 {[%clk 0:00:02]} 73. Rc6 {[%clk 0:00:06]}  Be4 {[%clk 0:00:01]} 74. Rc5 {[%clk 0:00:06]}  Kd6 {[%clk 0:00:01]} 75. Rc6+ {[%clk 0:00:06]}  Ke7 {[%clk 0:00:01]} 76. a5 {[%clk 0:00:07]}  g5+ {[%clk 0:00:01]} 77. hxg5 {[%clk 0:00:06]}  fxg5+ {[%clk 0:00:02]} 78. Kxg5 {[%clk 0:00:06]}  Bd3 {[%clk 0:00:03]} 79. Bxd3 {[%clk 0:00:04]} 1-0


[Site "https://www.chess.com"]

[Event "Titled Tuesday Blitz January 11 2022"]
[White "Jobava, Baadur"]
[Black "Csonka, Balazs"]
[WhiteFideId "13601520"]
[BlackFideId "742910"]
[WhiteElo "2617"]
[BlackElo "2404"]
[Result "1-0"]
[Round "03"]
[TimeControl "180+1"]
[Date "2022.01.11"]
[WhiteClock "0:01:56"]
[BlackClock "0:00:01"]

1. e4 {[%clk 0:03:00]}  e5 {[%clk 0:02:56]} 2. Nf3 {[%clk 0:03:00]}  Nc6 {[%clk 0:02:57]} 3. Bc4 {[%clk 0:03:01]}  Nf6 {[%clk 0:02:57]} 4. d3 {[%clk 0:03:01]}  h6 {[%clk 0:02:55]} 5. a4 {[%clk 0:02:58]}  a5 {[%clk 0:02:41]} 6. Nc3 {[%clk 0:02:56]}  Bc5 {[%clk 0:02:37]} 7. Be3 {[%clk 0:02:55]}  b6 {[%clk 0:02:10]} 8. O-O {[%clk 0:02:54]}  O-O {[%clk 0:02:08]} 9. Bb5 {[%clk 0:02:46]}  Bxe3 {[%clk 0:01:45]} 10. fxe3 {[%clk 0:02:34]}  Re8 {[%clk 0:01:16]} 11. Bc4 {[%clk 0:02:29]}  d6 {[%clk 0:01:06]} 12. Nh4 {[%clk 0:02:27]}  Be6 {[%clk 0:01:05]} 13. Nf5 {[%clk 0:02:25]}  Bxc4 {[%clk 0:00:51]} 14. dxc4 {[%clk 0:02:25]}  Re6 {[%clk 0:00:51]} 15. Nd5 {[%clk 0:02:24]}  Kh7 {[%clk 0:00:35]} 16. Qf3 {[%clk 0:02:22]}  Nb4 {[%clk 0:00:18]} 17. Rf2 {[%clk 0:02:17]}  Nfxd5 {[%clk 0:00:12]} 18. cxd5 {[%clk 0:02:18]}  Rg6 {[%clk 0:00:08]} 19. Raf1 {[%clk 0:02:14]}  Qd7 {[%clk 0:00:08]} 20. h4 {[%clk 0:02:09]}  Rf8 {[%clk 0:00:08]} 21. b3 {[%clk 0:02:07]}  Rf6 {[%clk 0:00:03]} 22. Qg4 {[%clk 0:02:01]}  g6 {[%clk 0:00:02]} 23. Nxh6 {[%clk 0:02:01]}  Qxg4 {[%clk 0:00:01]} 24. Nxg4 {[%clk 0:02:02]}  Rxf2 {[%clk 0:00:01]} 25. Rxf2 {[%clk 0:02:03]}  Kg7 {[%clk 0:00:02]} 26. Nf6 {[%clk 0:01:59]}  Rh8 {[%clk 0:00:01]} 27. g3 {[%clk 0:01:58]}  Nxc2 {[%clk 0:00:01]} 28. Rxc2 {[%clk 0:01:59]}  Kxf6 {[%clk 0:00:01]} 29. Rxc7 {[%clk 0:01:59]}  Rb8 {[%clk 0:00:01]} 30. Rd7 {[%clk 0:01:56]}  b5 {[%clk 0:00:02]} 31. Rxd6+ {[%clk 0:01:57]}  Ke7 {[%clk 0:00:02]} 32. Ra6 {[%clk 0:01:57]}  bxa4 {[%clk 0:00:03]} 33. bxa4 {[%clk 0:01:58]}  Rb4 {[%clk 0:00:03]} 34. Rxa5 {[%clk 0:01:58]}  Rxe4 {[%clk 0:00:03]} 35. Kf2 {[%clk 0:01:59]}  Rb4 {[%clk 0:00:03]} 36. Kf3 {[%clk 0:01:59]}  f5 {[%clk 0:00:02]} 37. Ra6 {[%clk 0:01:57]}  Kf7 {[%clk 0:00:01]} 38. a5 {[%clk 0:01:57]}  Kg7 {[%clk 0:00:01]} 39. Ra8 {[%clk 0:01:56]} 1-0


[Site "https://www.chess.com"]

[Event "Titled Tuesday Blitz January 11 2022"]
[White "Kosteniuk, Alexandra"]
[Black "Yoo, Christopher Woojin"]
[WhiteFideId "4128125"]
[BlackFideId "30909694"]
[WhiteElo "2469"]
[BlackElo "2105"]
[Result "0-1"]
[Round "03"]
[TimeControl "180+1"]
[Date "2022.01.11"]
[WhiteClock "0:00:34"]
[BlackClock "0:00:02"]

1. e4 {[%clk 0:03:00]}  e5 {[%clk 0:02:55]} 2. Nf3 {[%clk 0:03:00]}  Nc6 {[%clk 0:02:56]} 3. Bb5 {[%clk 0:03:00]}  a6 {[%clk 0:02:55]} 4. Ba4 {[%clk 0:03:00]}  Nf6 {[%clk 0:02:56]} 5. d4 {[%clk 0:03:00]}  exd4 {[%clk 0:02:51]} 6. O-O {[%clk 0:03:00]}  Be7 {[%clk 0:02:51]} 7. e5 {[%clk 0:03:01]}  Ne4 {[%clk 0:02:50]} 8. Nxd4 {[%clk 0:02:59]}  O-O {[%clk 0:02:49]} 9. Nf5 {[%clk 0:02:58]}  d5 {[%clk 0:02:47]} 10. Nxe7+ {[%clk 0:02:54]}  Nxe7 {[%clk 0:02:48]} 11. c3 {[%clk 0:02:50]}  Nc5 {[%clk 0:02:28]} 12. Bc2 {[%clk 0:02:49]}  Bf5 {[%clk 0:02:28]} 13. Na3 {[%clk 0:02:48]}  Ne6 {[%clk 0:02:19]} 14. Be3 {[%clk 0:02:38]}  c5 {[%clk 0:02:14]} 15. Re1 {[%clk 0:02:08]}  d4 {[%clk 0:02:05]} 16. cxd4 {[%clk 0:02:05]}  cxd4 {[%clk 0:02:04]} 17. Bd2 {[%clk 0:02:05]}  d3 {[%clk 0:01:55]} 18. Bb3 {[%clk 0:02:04]}  Nd4 {[%clk 0:01:55]} 19. Nc4 {[%clk 0:02:04]}  Nec6 {[%clk 0:01:32]} 20. Nd6 {[%clk 0:01:57]}  Be6 {[%clk 0:01:31]} 21. Qh5 {[%clk 0:01:23]}  Bxb3 {[%clk 0:01:04]} 22. axb3 {[%clk 0:01:24]}  Ne2+ {[%clk 0:01:01]} 23. Kh1 {[%clk 0:01:21]}  g6 {[%clk 0:00:58]} 24. Qh6 {[%clk 0:01:16]}  Nxe5 {[%clk 0:00:54]} 25. Ne4 {[%clk 0:01:13]}  Ng4 {[%clk 0:00:47]} 26. Qh3 {[%clk 0:01:09]}  f5 {[%clk 0:00:48]} 27. f3 {[%clk 0:01:09]}  fxe4 {[%clk 0:00:46]} 28. Qxg4 {[%clk 0:01:08]}  exf3 {[%clk 0:00:45]} 29. Qc4+ {[%clk 0:01:05]}  Rf7 {[%clk 0:00:42]} 30. Rf1 {[%clk 0:01:05]}  Rc8 {[%clk 0:00:39]} 31. Qe6 {[%clk 0:01:03]}  Rc6 {[%clk 0:00:35]} 32. Qe4 {[%clk 0:01:04]}  Qd4 {[%clk 0:00:27]} 33. gxf3 {[%clk 0:01:02]}  Qxe4 {[%clk 0:00:26]} 34. fxe4 {[%clk 0:01:02]}  Rc2 {[%clk 0:00:24]} 35. Rfd1 {[%clk 0:00:59]}  Rxb2 {[%clk 0:00:20]} 36. e5 {[%clk 0:00:51]}  Re7 {[%clk 0:00:15]} 37. Ra5 {[%clk 0:00:49]}  Rxb3 {[%clk 0:00:12]} 38. Rd5 {[%clk 0:00:48]}  Kf7 {[%clk 0:00:11]} 39. Bg5 {[%clk 0:00:44]}  Rc7 {[%clk 0:00:04]} 40. R5xd3 {[%clk 0:00:35]}  Rxd3 {[%clk 0:00:03]} 41. Rxd3 {[%clk 0:00:36]}  Ke6 {[%clk 0:00:03]} 42. Bf6 {[%clk 0:00:34]}  Rc1+ {[%clk 0:00:02]} 0-1


[Site "https://www.chess.com"]

[Event "Titled Tuesday Blitz January 11 2022"]
[White "Lenderman, Aleksandr"]
[Black "Nevednichy, Vladislav"]
[WhiteFideId "2021285"]
[BlackFideId "1205730"]
[WhiteElo "2651"]
[BlackElo "2370"]
[Result "1-0"]
[Round "03"]
[TimeControl "180+1"]
[Date "2022.01.11"]
[WhiteClock "0:01:31"]
[BlackClock "0:00:22"]

1. Nf3 {[%clk 0:03:00]}  g6 {[%clk 0:02:56]} 2. e4 {[%clk 0:03:00]}  Bg7 {[%clk 0:02:56]} 3. d4 {[%clk 0:03:00]}  d6 {[%clk 0:02:56]} 4. Bc4 {[%clk 0:03:00]}  c6 {[%clk 0:02:51]} 5. Bb3 {[%clk 0:02:59]}  a5 {[%clk 0:02:46]} 6. a4 {[%clk 0:02:57]}  e6 {[%clk 0:02:45]} 7. O-O {[%clk 0:02:56]}  d5 {[%clk 0:02:42]} 8. Re1 {[%clk 0:02:56]}  Nf6 {[%clk 0:02:40]} 9. e5 {[%clk 0:02:51]}  Nfd7 {[%clk 0:02:40]} 10. c3 {[%clk 0:02:51]}  h6 {[%clk 0:02:36]} 11. Bc2 {[%clk 0:02:49]}  c5 {[%clk 0:02:36]} 12. Na3 {[%clk 0:02:48]}  Nc6 {[%clk 0:02:23]} 13. Nb5 {[%clk 0:02:48]}  O-O {[%clk 0:02:09]} 14. h4 {[%clk 0:02:47]}  cxd4 {[%clk 0:02:05]} 15. cxd4 {[%clk 0:02:47]}  Nb4 {[%clk 0:02:05]} 16. Bb1 {[%clk 0:02:47]}  f5 {[%clk 0:01:46]} 17. exf6 {[%clk 0:02:46]}  Rxf6 {[%clk 0:01:32]} 18. Bd2 {[%clk 0:02:33]}  Ra6 {[%clk 0:01:28]} 19. Ne5 {[%clk 0:02:31]}  Nf8 {[%clk 0:01:21]} 20. Qg4 {[%clk 0:02:23]}  Nc6 {[%clk 0:01:06]} 21. Qg3 {[%clk 0:02:22]}  Ne7 {[%clk 0:00:59]} 22. Ng4 {[%clk 0:02:18]}  Nf5 {[%clk 0:00:58]} 23. Nxf6+ {[%clk 0:02:17]}  Qxf6 {[%clk 0:00:58]} 24. Bxf5 {[%clk 0:02:18]}  Qxf5 {[%clk 0:00:54]} 25. Bf4 {[%clk 0:02:10]}  Bd7 {[%clk 0:00:54]} 26. Be5 {[%clk 0:02:07]}  Rc6 {[%clk 0:00:48]} 27. Bxg7 {[%clk 0:02:03]}  Kxg7 {[%clk 0:00:49]} 28. Rac1 {[%clk 0:01:58]}  Nh7 {[%clk 0:00:47]} 29. Qe5+ {[%clk 0:01:51]}  Qxe5 {[%clk 0:00:43]} 30. dxe5 {[%clk 0:01:52]}  g5 {[%clk 0:00:40]} 31. Nd4 {[%clk 0:01:50]}  Rxc1 {[%clk 0:00:36]} 32. Rxc1 {[%clk 0:01:50]}  Kg6 {[%clk 0:00:35]} 33. Rc7 {[%clk 0:01:49]}  Nf8 {[%clk 0:00:33]} 34. hxg5 {[%clk 0:01:48]}  hxg5 {[%clk 0:00:32]} 35. b3 {[%clk 0:01:48]}  b6 {[%clk 0:00:30]} 36. Rb7 {[%clk 0:01:48]}  Kf7 {[%clk 0:00:26]} 37. Rxb6 {[%clk 0:01:48]}  Ng6 {[%clk 0:00:26]} 38. Nc6 {[%clk 0:01:39]}  Bxc6 {[%clk 0:00:24]} 39. Rxc6 {[%clk 0:01:39]}  Nxe5 {[%clk 0:00:25]} 40. Rc5 {[%clk 0:01:39]}  Kf6 {[%clk 0:00:22]} 41. Rxa5 {[%clk 0:01:39]}  d4 {[%clk 0:00:23]} 42. Kf1 {[%clk 0:01:38]}  Nd3 {[%clk 0:00:22]} 43. Rb5 {[%clk 0:01:35]}  g4 {[%clk 0:00:22]} 44. a5 {[%clk 0:01:35]}  e5 {[%clk 0:00:22]} 45. a6 {[%clk 0:01:34]}  e4 {[%clk 0:00:23]} 46. a7 {[%clk 0:01:33]}  g3 {[%clk 0:00:24]} 47. a8=Q {[%clk 0:01:31]}  Nxf2 {[%clk 0:00:22]} 48. Qc6+ {[%clk 0:01:31]} 1-0


[Site "https://www.chess.com"]

[Event "Titled Tuesday Blitz January 11 2022"]
[White "Maltsevskaya, Aleksandra"]
[Black "Gareyev, Timur"]
[WhiteFideId "24174041"]
[BlackFideId "14200937"]
[WhiteElo "2283"]
[BlackElo "2586"]
[Result "0-1"]
[Round "03"]
[TimeControl "180+1"]
[Date "2022.01.11"]
[WhiteClock "0:00:48"]
[BlackClock "0:01:37"]

1. e4 {[%clk 0:03:00]}  c5 {[%clk 0:02:27]} 2. Nf3 {[%clk 0:02:59]}  a6 {[%clk 0:02:27]} 3. c3 {[%clk 0:02:59]}  e6 {[%clk 0:02:27]} 4. d4 {[%clk 0:02:26]}  d5 {[%clk 0:02:26]} 5. exd5 {[%clk 0:02:26]}  exd5 {[%clk 0:02:27]} 6. Bd3 {[%clk 0:02:26]}  c4 {[%clk 0:02:25]} 7. Bc2 {[%clk 0:02:26]}  Bd6 {[%clk 0:02:25]} 8. O-O {[%clk 0:02:26]}  Ne7 {[%clk 0:02:25]} 9. h3 {[%clk 0:02:27]}  b5 {[%clk 0:02:23]} 10. a4 {[%clk 0:02:19]}  b4 {[%clk 0:02:19]} 11. cxb4 {[%clk 0:02:14]}  Nbc6 {[%clk 0:02:19]} 12. Nc3 {[%clk 0:02:12]}  Nxb4 {[%clk 0:02:17]} 13. Re1 {[%clk 0:02:12]}  Nxc2 {[%clk 0:02:12]} 14. Qxc2 {[%clk 0:02:13]}  O-O {[%clk 0:02:12]} 15. Bg5 {[%clk 0:02:06]}  f6 {[%clk 0:02:11]} 16. Be3 {[%clk 0:02:01]}  Bf5 {[%clk 0:02:10]} 17. Qd2 {[%clk 0:02:02]}  Qc7 {[%clk 0:02:04]} 18. Rac1 {[%clk 0:01:59]}  Rab8 {[%clk 0:02:03]} 19. Nh4 {[%clk 0:01:24]}  Bd7 {[%clk 0:01:55]} 20. Qe2 {[%clk 0:01:08]}  Rfe8 {[%clk 0:01:44]} 21. Qf3 {[%clk 0:01:04]}  Qc6 {[%clk 0:01:41]} 22. Qh5 {[%clk 0:00:58]}  g6 {[%clk 0:01:39]} 23. Qf3 {[%clk 0:00:50]}  g5 {[%clk 0:01:38]} 24. Qxf6 {[%clk 0:00:48]}  Bh2+ {[%clk 0:01:37]} 0-1


[Site "https://www.chess.com"]

[Event "Titled Tuesday Blitz January 11 2022"]
[White "Maximov, Dmitry"]
[Black "Blomqvist, Erik"]
[WhiteFideId "14105659"]
[BlackFideId "1709437"]
[WhiteElo "2494"]
[BlackElo "2423"]
[Result "1-0"]
[Round "03"]
[TimeControl "180+1"]
[Date "2022.01.11"]
[WhiteClock "0:01:08"]
[BlackClock "0:00:24"]

1. e4 {[%clk 0:03:00]}  c5 {[%clk 0:02:59]} 2. Nf3 {[%clk 0:03:00]}  e6 {[%clk 0:02:59]} 3. c3 {[%clk 0:03:01]}  Nf6 {[%clk 0:02:59]} 4. Bd3 {[%clk 0:03:01]}  d5 {[%clk 0:02:57]} 5. e5 {[%clk 0:03:01]}  Nfd7 {[%clk 0:02:53]} 6. Bc2 {[%clk 0:03:02]}  Nc6 {[%clk 0:02:49]} 7. d4 {[%clk 0:03:02]}  Qb6 {[%clk 0:02:31]} 8. O-O {[%clk 0:03:01]}  Be7 {[%clk 0:02:24]} 9. a3 {[%clk 0:03:01]}  f6 {[%clk 0:02:13]} 10. exf6 {[%clk 0:02:54]}  Bxf6 {[%clk 0:02:12]} 11. Re1 {[%clk 0:02:53]}  O-O {[%clk 0:02:04]} 12. Rxe6 {[%clk 0:02:51]}  cxd4 {[%clk 0:02:04]} 13. cxd4 {[%clk 0:02:50]}  Qd8 {[%clk 0:01:05]} 14. Nc3 {[%clk 0:02:40]}  Nb6 {[%clk 0:01:04]} 15. Re1 {[%clk 0:02:11]}  Bg4 {[%clk 0:01:05]} 16. Qd3 {[%clk 0:02:11]}  g6 {[%clk 0:01:02]} 17. Bh6 {[%clk 0:02:08]}  Rf7 {[%clk 0:00:59]} 18. Ne5 {[%clk 0:02:03]}  Nxe5 {[%clk 0:00:47]} 19. dxe5 {[%clk 0:02:03]}  Be7 {[%clk 0:00:47]} 20. Qg3 {[%clk 0:01:56]}  Bf5 {[%clk 0:00:46]} 21. e6 {[%clk 0:01:44]}  Rf6 {[%clk 0:00:43]} 22. Bb3 {[%clk 0:01:16]}  Rxe6 {[%clk 0:00:36]} 23. Rxe6 {[%clk 0:01:15]}  Bxe6 {[%clk 0:00:37]} 24. Qe5 {[%clk 0:01:15]}  Kf7 {[%clk 0:00:29]} 25. Re1 {[%clk 0:01:12]}  Qd6 {[%clk 0:00:24]} 26. Qg7+ {[%clk 0:01:10]}  Ke8 {[%clk 0:00:24]} 27. Nb5 {[%clk 0:01:08]} 1-0


[Site "https://www.chess.com"]

[Event "Titled Tuesday Blitz January 11 2022"]
[White "Nesterov, Arseniy"]
[Black "Vysochin, Spartak"]
[WhiteFideId "24198455"]
[BlackFideId "14103516"]
[WhiteElo "2489"]
[BlackElo "2401"]
[Result "1/2-1/2"]
[Round "03"]
[TimeControl "180+1"]
[Date "2022.01.11"]
[WhiteClock "0:00:04"]
[BlackClock "0:00:07"]

1. d4 {[%clk 0:03:00]}  d5 {[%clk 0:02:57]} 2. c4 {[%clk 0:03:00]}  c6 {[%clk 0:02:57]} 3. Nc3 {[%clk 0:03:00]}  Nf6 {[%clk 0:02:56]} 4. e3 {[%clk 0:03:01]}  a6 {[%clk 0:02:55]} 5. Qc2 {[%clk 0:03:00]}  g6 {[%clk 0:02:50]} 6. Bd3 {[%clk 0:02:59]}  Bg7 {[%clk 0:02:50]} 7. Nf3 {[%clk 0:02:59]}  O-O {[%clk 0:02:50]} 8. Ne5 {[%clk 0:02:55]}  Nbd7 {[%clk 0:02:39]} 9. f4 {[%clk 0:02:55]}  e6 {[%clk 0:02:34]} 10. c5 {[%clk 0:02:51]}  Nxe5 {[%clk 0:02:16]} 11. fxe5 {[%clk 0:02:50]}  Nd7 {[%clk 0:02:10]} 12. Bd2 {[%clk 0:02:31]}  b6 {[%clk 0:01:59]} 13. cxb6 {[%clk 0:02:29]}  c5 {[%clk 0:01:59]} 14. O-O {[%clk 0:02:09]}  cxd4 {[%clk 0:01:54]} 15. exd4 {[%clk 0:02:10]}  Qxb6 {[%clk 0:01:54]} 16. Be3 {[%clk 0:02:05]}  Nxe5 {[%clk 0:01:49]} 17. Na4 {[%clk 0:02:04]}  Qa7 {[%clk 0:01:47]} 18. Be2 {[%clk 0:02:04]}  Bd7 {[%clk 0:01:37]} 19. Nc5 {[%clk 0:02:03]}  Nc4 {[%clk 0:01:36]} 20. Bxc4 {[%clk 0:02:00]}  dxc4 {[%clk 0:01:36]} 21. Nxd7 {[%clk 0:01:58]}  Qxd7 {[%clk 0:01:32]} 22. Qxc4 {[%clk 0:01:59]}  Rfc8 {[%clk 0:01:31]} 23. Qd3 {[%clk 0:01:55]}  Qb5 {[%clk 0:01:29]} 24. Qxb5 {[%clk 0:01:51]}  axb5 {[%clk 0:01:28]} 25. Rac1 {[%clk 0:01:49]}  Rxc1 {[%clk 0:01:15]} 26. Rxc1 {[%clk 0:01:50]}  h6 {[%clk 0:01:14]} 27. a3 {[%clk 0:01:49]}  Ra4 {[%clk 0:01:14]} 28. Rc5 {[%clk 0:01:48]}  Bxd4 {[%clk 0:01:11]} 29. Bxd4 {[%clk 0:01:45]}  Rxd4 {[%clk 0:01:11]} 30. Rxb5 {[%clk 0:01:46]}  Kg7 {[%clk 0:01:09]} 31. b4 {[%clk 0:01:40]}  Rd1+ {[%clk 0:01:05]} 32. Kf2 {[%clk 0:01:40]}  Ra1 {[%clk 0:01:06]} 33. Ra5 {[%clk 0:01:40]}  f5 {[%clk 0:01:06]} 34. a4 {[%clk 0:01:34]}  Kf6 {[%clk 0:01:06]} 35. b5 {[%clk 0:01:32]}  Rb1 {[%clk 0:01:04]} 36. Ra6 {[%clk 0:01:30]}  f4 {[%clk 0:01:03]} 37. b6 {[%clk 0:01:26]}  e5 {[%clk 0:01:03]} 38. a5 {[%clk 0:01:26]}  Kf5 {[%clk 0:01:03]} 39. Ra7 {[%clk 0:01:24]}  e4 {[%clk 0:01:00]} 40. Re7 {[%clk 0:00:52]}  e3+ {[%clk 0:00:54]} 41. Kf3 {[%clk 0:00:14]}  g5 {[%clk 0:00:53]} 42. b7 {[%clk 0:00:12]}  g4+ {[%clk 0:00:50]} 43. Ke2 {[%clk 0:00:12]}  Kf6 {[%clk 0:00:42]} 44. Rc7 {[%clk 0:00:08]}  Rb2+ {[%clk 0:00:41]} 45. Kd3 {[%clk 0:00:08]}  e2 {[%clk 0:00:41]} 46. Rc1 {[%clk 0:00:04]}  Rxb7 {[%clk 0:00:32]} 47. Kxe2 {[%clk 0:00:05]}  Rb2+ {[%clk 0:00:32]} 48. Kd3 {[%clk 0:00:03]}  Rxg2 {[%clk 0:00:27]} 49. Ra1 {[%clk 0:00:03]}  Rb2 {[%clk 0:00:20]} 50. a6 {[%clk 0:00:03]}  Rb8 {[%clk 0:00:20]} 51. a7 {[%clk 0:00:04]}  Ra8 {[%clk 0:00:21]} 52. Ke4 {[%clk 0:00:04]}  f3 {[%clk 0:00:21]} 53. Kf4 {[%clk 0:00:05]}  h5 {[%clk 0:00:21]} 54. Kg3 {[%clk 0:00:02]}  Kg5 {[%clk 0:00:19]} 55. Ra5+ {[%clk 0:00:02]}  Kg6 {[%clk 0:00:20]} 56. Ra6+ {[%clk 0:00:02]}  Kf5 {[%clk 0:00:20]} 57. Ra5+ {[%clk 0:00:03]}  Ke4 {[%clk 0:00:20]} 58. Ra1 {[%clk 0:00:02]}  Ke3 {[%clk 0:00:20]} 59. Re1+ {[%clk 0:00:02]}  Kd2 {[%clk 0:00:20]} 60. Re7 {[%clk 0:00:03]}  Rf8 {[%clk 0:00:17]} 61. Rd7+ {[%clk 0:00:02]}  Ke3 {[%clk 0:00:17]} 62. Re7+ {[%clk 0:00:02]}  Kd4 {[%clk 0:00:17]} 63. Rd7+ {[%clk 0:00:02]}  Kc5 {[%clk 0:00:17]} 64. Rf7 {[%clk 0:00:03]}  Ra8 {[%clk 0:00:13]} 65. Rh7 {[%clk 0:00:02]}  h4+ {[%clk 0:00:09]} 66. Rxh4 {[%clk 0:00:02]}  Rxa7 {[%clk 0:00:08]} 67. Rxg4 {[%clk 0:00:02]}  Rf7 {[%clk 0:00:07]} 68. Kf2 {[%clk 0:00:02]}  Kd5 {[%clk 0:00:08]} 69. h4 {[%clk 0:00:02]}  Ke5 {[%clk 0:00:08]} 70. h5 {[%clk 0:00:02]}  Kf5 {[%clk 0:00:07]} 71. Kxf3 {[%clk 0:00:02]}  Rh7 {[%clk 0:00:06]} 72. Rf4+ {[%clk 0:00:03]}  Kg5 {[%clk 0:00:06]} 73. Ra4 {[%clk 0:00:03]}  Kxh5 {[%clk 0:00:06]} 74. Kg3 {[%clk 0:00:03]}  Kg6 {[%clk 0:00:07]} 75. Kg4 {[%clk 0:00:03]}  Rf7 {[%clk 0:00:06]} 76. Ra6+ {[%clk 0:00:04]}  Rf6 {[%clk 0:00:07]} 77. Rxf6+ {[%clk 0:00:04]}  Kxf6 {[%clk 0:00:07]} 1/2-1/2


[Site "https://www.chess.com"]